bitfinex-derivatives/quotes_SOLF0:USTF0_20220109
["timestamp","ask_amount","ask_price","bid_price","bid_amount"]
[1641763639772,1.55716707,143.19,143.16,3.9645131]
[1641763640173,1.55716707,143.2,143.16,3.9645131]
[1641763640774,14.78712616,143.23,143.16,3.9645131]
[1641763640977,1.55733826,143.22,143.16,3.9645131]
[1641763641176,1.55733826,143.22,143.17,27.66479]
[1641763642375,1.55733826,143.23,143.18,3.96388151]
[1641763642777,1.55733826,143.22,143.18,3.96388151]
[1641763642976,4.02668612,143.22,143.18,3.96388151]
[1641763643176,1.55733826,143.21,143.18,3.96388151]
[1641763643778,1.55733826,143.2,143.18,3.96388151]
[1641763644277,1.55733826,143.19,143.18,3.96388151]
[1641763647081,1.55733826,143.19,143.18,6.43374819]
[1641763649784,3.826e-05,143.19,143.18,6.43374819]
[1641763649983,3.826e-05,143.19,143.18,41.92414819]
[1641763650185,3.826e-05,143.19,143.18,45.92404819]
[1641763650384,14.78712616,143.25,143.18,45.92404819]
[1641763650587,2.47182857,143.25,143.2,3.9999]
[1641763651189,14.78712616,143.26,143.24,27.66479]
[1641763651590,39.36551884,143.29,143.24,27.66479]
[1641763651787,14.82388851,143.28,143.25,3.96285231]
[1641763652592,39.36551884,143.31,143.25,3.96285231]
[1641763652790,51.8138051,143.33,143.25,3.96285231]
[1641763653590,9.86672039,143.32,143.25,3.96285231]
[1641763654291,41.94708471,143.33,143.25,3.96285231]
[1641763655189,41.94708471,143.33,143.25,37.47205231]
[1641763655591,41.94708471,143.33,143.25,3.96285231]
[1641763655790,41.94708471,143.33,143.24,27.66479]
[1641763656192,4.0,143.32,143.25,3.96240076]
[1641763656392,6.98104646,143.3,143.25,3.96240076]
[1641763656593,1.744,143.29,143.22,27.66479]
[1641763657192,6.98104646,143.3,143.23,3.96293554]
[1641763657392,6.98104646,143.3,143.23,38.73253554]
[1641763658192,6.98104646,143.3,143.24,3.96293554]
[1641763658893,29.40979,143.31,143.24,3.96293554]
[1641763659196,41.94708471,143.33,143.26,27.66479]
[1641763659395,6.97958471,143.33,143.26,27.66479]
[1641763660292,6.97958471,143.33,143.26,31.66469]
[1641763660494,6.97958471,143.33,143.27,3.9999]
[1641763660694,16.82941674,143.33,143.27,34.1761]
[1641763661395,6.97958471,143.33,143.27,34.1761]
[1641763663001,6.97958471,143.33,143.26,27.66479]
[1641763666709,6.97958471,143.33,143.24,8.527]
[1641763666710,0.79240791,143.32,143.24,8.527]
[1641763666908,2.53640791,143.32,143.25,34.9051]
[1641763667609,0.79240791,143.31,143.25,34.9051]
[1641763669511,0.79240791,143.32,143.25,34.9051]
[1641763669713,0.79240791,143.32,143.25,62.56989]
[1641763669911,0.79240791,143.32,143.25,70.73589]
[1641763674118,0.79240791,143.32,143.25,35.83079]
[1641763674317,0.79240791,143.32,143.25,27.66479]
[1641763674518,2.53640791,143.32,143.25,27.66479]
[1641763675118,0.79240791,143.31,143.25,27.66479]
[1641763675719,0.79240791,143.31,143.23,35.3424]
[1641763675918,0.79240791,143.31,143.23,44.92771143]
[1641763676218,0.79240791,143.31,143.24,3.9999]
[1641763676618,0.79240791,143.32,143.24,3.96202518]
[1641763676819,0.79240791,143.32,143.24,7.96192518]
[1641763677221,0.79240791,143.32,143.24,3.96202518]
[1641763677420,0.79240791,143.32,143.24,7.96192518]
[1641763677618,0.79240791,143.32,143.25,3.96202518]
[1641763678421,0.79240791,143.32,143.24,3.96202518]
[1641763679421,0.79240791,143.32,143.24,7.96192518]
[1641763679822,0.79240791,143.32,143.25,31.62681518]
[1641763680024,0.79240791,143.32,143.26,34.1434]
[1641763680322,0.79240791,143.32,143.26,38.10542518]
[1641763680723,0.79240791,143.32,143.26,34.1434]
[1641763682023,14.83057852,143.3,143.26,34.1434]
[1641763682724,0.79240791,143.29,143.26,34.1434]
[1641763686028,0.79240791,143.29,143.25,27.66479]
[1641763686227,0.79240791,143.29,143.22,27.66479]
[1641763686628,0.79240791,143.29,143.21,14.83057852]
[1641763686828,22.15918072,143.28,143.2,35.5168]
[1641763687028,26.15918072,143.28,143.19,14.83057852]
[1641763687327,0.79240791,143.27,143.21,3.96319904]
[1641763687828,14.83057852,143.26,143.2,3.96319904]
[1641763688232,0.79240791,143.25,143.2,3.96319904]
[1641763690432,0.79240791,143.26,143.2,3.96319904]
[1641763691433,2.46982167,143.25,143.2,3.96319904]
[1641763691734,0.79240791,143.24,143.2,3.96319904]
[1641763693535,0.79240791,143.26,143.2,3.96319904]
[1641763694136,2.46880267,143.25,143.2,3.96319904]
[1641763694437,0.79240791,143.24,143.2,3.96319904]
[1641763695735,2.46880267,143.23,143.2,3.96319904]
[1641763696436,0.79240791,143.22,143.2,3.96319904]
[1641763696838,0.79240791,143.26,143.2,3.96319904]
[1641763697437,4.79240791,143.26,143.2,3.96319904]
[1641763697638,6.98372791,143.24,143.2,3.96319904]
[1641763697838,33.25040931,143.23,143.17,27.66479]
[1641763698037,34.99540931,143.23,143.14,32.2717]
[1641763698238,35.78781722,143.23,143.14,32.2717]
[1641763698440,39.78781722,143.23,143.14,32.2717]
[1641763698644,4.0,143.22,143.14,32.2717]
[1641763698839,4.79240791,143.22,143.15,3.96447502]
[1641763699039,22.09104927,143.22,143.15,3.96447502]
[1641763699241,0.79240791,143.21,143.15,3.96447502]
[1641763699440,9.15040791,143.21,143.15,3.96447502]
[1641763699842,2.46806284,143.2,143.15,3.96447502]
[1641763700343,0.79240791,143.19,143.15,3.96447502]
[1641763701048,0.79240791,143.2,143.15,3.96447502]
[1641763701644,52.08098783,143.23,143.15,3.96447502]
[1641763701645,0.79240791,143.22,143.15,3.96447502]
[1641763702246,2.46322458,143.21,143.15,3.96447502]
[1641763703046,0.79240791,143.2,143.15,3.96447502]
[1641763703947,28.45719791,143.2,143.15,3.96447502]
[1641763704346,0.79240791,143.19,143.15,3.96447502]
[1641763705348,0.79240791,143.22,143.15,3.96447502]
[1641763706049,6.98567936,143.2,143.15,3.96447502]
[1641763706649,0.79240791,143.19,143.15,3.96447502]
[1641763711156,6.37942031,143.19,143.15,3.96447502]
[1641763711554,0.79240791,143.18,143.15,3.96447502]
[1641763714360,4.0,143.17,143.14,32.2717]
[1641763714560,5.746,143.17,143.14,32.2717]
[1641763714760,0.79240791,143.16,143.14,32.2717]
[1641763715161,0.79240791,143.16,143.09,27.66479]
[1641763715562,0.79240791,143.16,143.1,3.96578295]
[1641763718365,0.79240791,143.16,143.11,3.9999]
[1641763718565,0.79240791,143.17,143.13,3.9999]
[1641763719165,0.79240791,143.19,143.14,3.96578295]
[1641763719770,0.79240791,143.19,143.13,32.2638]
[1641763719968,0.79240791,143.19,143.13,59.92859]
[1641763720169,0.79240791,143.21,143.15,3.96578295]
[1641763720569,0.79240791,143.21,143.14,3.96578295]
[1641763720970,6.98592336,143.2,143.14,3.96578295]
[1641763721370,0.79240791,143.19,143.14,3.96578295]
[1641763721872,4.0,143.18,143.14,3.96578295]
[1641763722072,31.66479,143.18,143.14,3.96578295]
[1641763722272,4.0,143.17,143.1,32.5585]
[1641763722472,13.42,143.17,143.1,32.5585]
[1641763722672,6.9881202,143.15,143.1,32.5585]
[1641763722873,8.46640791,143.17,143.1,32.5585]
[1641763723073,0.79240791,143.14,143.11,3.96563899]
[1641763723473,0.79240791,143.15,143.11,3.96563899]
[1641763724175,0.79240791,143.16,143.11,3.96563899]
[1641763725975,34.65315437,143.15,143.1,3.96563899]
[1641763726376,0.79240791,143.14,143.08,36.36293899]
[1641763726778,0.79240791,143.14,143.09,3.96563899]
[1641763734882,6.47044125,143.13,143.09,3.96563899]
[1641763735080,2.47044125,143.13,143.09,3.96563899]
[1641763735282,0.79240791,143.12,143.09,3.96563899]
[1641763736088,0.79240791,143.13,143.09,3.96563899]
[1641763739990,0.79240791,143.13,143.1,27.66479]
[1641763740690,0.79240791,143.14,143.1,27.66479]
[1641763741294,2.47015787,143.13,143.1,27.66479]
[1641763742090,0.79240791,143.12,143.11,3.96581823]
[1641763742291,14.83057852,143.15,143.11,3.96581823]
[1641763742493,7.674,143.17,143.11,3.96581823]
[1641763743697,4.04453167,143.16,143.11,3.96581823]
[1641763744197,1.57476011,143.15,143.11,3.96581823]
[1641763744999,1.57476011,143.16,143.11,3.96581823]
[1641763746202,1.57476011,143.16,143.08,33.253]
[1641763746203,6.98860857,143.14,143.08,33.253]
[1641763746400,14.48460857,143.14,143.08,33.253]
[1641763746698,14.48460857,143.14,143.09,3.96659143]
[1641763746699,1.57476011,143.13,143.09,3.96659143]
[1641763747099,8.04550897,143.13,143.09,3.96659143]
[1641763747299,9.79150897,143.13,143.09,3.96659143]
[1641763747502,1.57476011,143.12,143.08,3.96659143]
[1641763747699,4.04550897,143.12,143.08,3.96659143]
[1641763748299,1.57476011,143.11,143.08,3.96659143]
[1641763748599,4.04550897,143.11,143.08,3.96659143]
[1641763749102,1.57476011,143.1,143.08,3.96659143]
[1641763749604,1.57476011,143.12,143.08,3.96659143]
[1641763750406,2.47106312,143.11,143.08,3.96659143]
[1641763750806,1.57476011,143.1,143.08,3.96659143]
[1641763752911,1.57476011,143.13,143.08,3.96659143]
[1641763753611,7.33575622,143.12,143.08,3.96659143]
[1641763753815,7.33575622,143.12,143.07,3.96659143]
[1641763754015,24.639004,143.12,143.07,3.96659143]
[1641763754216,29.23955011,143.11,143.07,3.96659143]
[1641763754615,1.57476011,143.1,143.07,3.96659143]
[1641763755016,2.47266926,143.1,143.07,3.96659143]
[1641763755419,1.57476011,143.09,143.07,3.96659143]
[1641763755616,1.57476011,143.09,143.02,42.49536852]
[1641763755817,1.747,143.08,143.01,12.03499095]
[1641763756019,2.33619271,142.99,142.96,58.74545561]
[1641763756416,1.748,143.01,142.96,21.84545561]
[1641763756615,1.748,143.01,142.96,12.38545561]
[1641763756817,1.748,143.01,142.91,27.66479]
[1641763757016,9.495,143.01,142.89,34.1561]
[1641763757217,2.76800598,143.0,142.92,3.97051131]
[1641763757617,6.99937006,142.93,142.91,3.97051131]
[1641763757817,6.99937006,142.93,142.91,6.44176587]
[1641763758020,2.76800598,142.92,142.91,2.47125456]
[1641763758218,2.76800598,142.92,142.91,1.47125456]
[1641763758619,2.76800598,142.92,142.84,27.66479]
[1641763759120,2.76800598,142.92,142.85,3.97162918]
[1641763759324,9.32000598,142.92,142.85,3.97162918]
[1641763760023,2.76800598,142.91,142.85,3.97162918]
[1641763760223,30.43279598,142.91,142.85,3.97162918]
[1641763760923,2.76800598,142.9,142.85,3.97162918]
[1641763763628,4.51700598,142.9,142.85,3.97162918]
[1641763764327,2.76800598,142.89,142.85,3.97162918]
[1641763765930,2.76800598,142.9,142.85,3.97162918]
[1641763769733,4.0,142.97,142.85,3.97162918]
[1641763769734,6.71605813,142.95,142.88,3.9999]
[1641763769932,8.05685242,142.99,142.89,3.9999]
[1641763770139,8.05685242,142.99,142.93,27.66479]
[1641763771037,2.76690188,142.98,142.93,27.66479]
[1641763771639,12.59293256,142.97,142.93,27.66479]
[1641763771840,1.748,142.96,142.93,27.66479]
[1641763772141,7.34376641,142.97,142.93,27.66479]
[1641763772338,2.76690188,142.95,142.93,27.66479]
[1641763772738,2.76690188,142.96,142.93,27.66479]
[1641763773640,10.11020375,142.98,142.93,27.66479]
[1641763773843,4.0,142.96,142.93,27.66479]
[1641763774041,5.59693741,142.94,142.87,34.5276]
[1641763774241,7.34593741,142.94,142.86,27.66479]
[1641763774441,2.76690188,142.93,142.88,3.97141535]
[1641763774843,2.76690188,142.93,142.86,27.66479]
[1641763774844,8.36422123,142.93,142.87,3.97141535]
[1641763775242,2.76690188,142.92,142.87,3.97141535]
[1641763775643,2.76690188,142.91,142.87,3.97141535]
[1641763776044,2.76690188,142.9,142.87,3.97141535]
[1641763776647,16.59463072,142.95,142.87,3.97141535]
[1641763776849,1.749,142.94,142.87,3.97141535]
[1641763777045,1.93712471,142.94,142.87,3.97141535]
[1641763777847,5.93712471,142.94,142.87,3.97141535]
[1641763778047,6.99986,142.91,142.87,3.97141535]
[1641763778248,1.749,142.9,142.87,3.97141535]
[1641763778648,1.93712471,142.89,142.85,3.97141535]
[1641763779550,1.93712471,142.91,142.85,3.97141535]
[1641763779950,1.93712471,142.92,142.85,3.97141535]
[1641763787462,1.93712471,142.95,142.85,3.97141535]
[1641763787860,1.93712471,142.95,142.85,7.97131535]
[1641763788060,1.93712471,142.95,142.86,14.82661528]
[1641763788261,1.93712471,142.95,142.89,27.66479]
[1641763788661,16.57561528,142.99,142.9,3.97141535]
[1641763788860,14.82661528,142.99,142.92,3.9999]
[1641763789062,14.82661528,143.0,142.9,19.38053118]
[1641763789264,14.82661528,143.0,142.9,23.38043118]
[1641763789460,14.82661528,143.0,142.91,3.9999]
[1641763789660,14.82661528,143.0,142.92,1.748]
[1641763789860,14.82661528,143.0,142.9,9.811]
[1641763790061,5.748,143.02,142.9,9.811]
[1641763790062,3.10290551,142.99,142.92,3.96967759]
[1641763790262,1.35490551,142.99,142.93,27.66479]
[1641763790462,1.35490551,142.98,142.93,27.66479]
[1641763790661,8.53590551,142.98,142.93,27.66479]
[1641763790863,7.181,142.98,142.94,3.96967759]
[1641763791563,1.35490551,142.97,142.94,3.96967759]
[1641763792865,7.70090551,142.99,142.94,3.96967759]
[1641763793266,1.35490551,142.98,142.94,3.96967759]
[1641763794068,1.35490551,142.99,142.94,3.96967759]
[1641763796470,1.35490551,142.99,142.94,11.37667759]
[1641763796670,1.35490551,143.01,142.94,11.37667759]
[1641763797170,1.35490551,143.01,142.95,3.96967759]
[1641763799675,6.99716615,142.97,142.95,3.96967759]
[1641763799875,15.77916615,142.97,142.94,3.96967759]
[1641763800076,1.748,142.96,142.94,3.96967759]
[1641763800276,15.77916615,142.97,142.94,3.96967759]
[1641763800476,1.35490551,142.96,142.9,3.96967759]
[1641763801779,7.34566342,142.95,142.9,3.96967759]
[1641763802278,1.35490551,142.94,142.88,3.96967759]
[1641763803078,8.00590551,142.94,142.88,3.96967759]
[1641763803478,9.75490551,142.94,142.88,3.96967759]
[1641763803677,1.35490551,142.93,142.88,3.96967759]
[1641763805079,16.95041037,142.93,142.88,3.96967759]
[1641763805282,18.59438504,142.93,142.88,3.96967759]
[1641763805581,1.749,142.92,142.88,3.96967759]
[1641763805782,3.10390551,142.92,142.86,3.96967759]
[1641763806183,1.35490551,142.91,142.86,3.96967759]
[1641763807887,6.95314463,142.91,142.86,3.96967759]
[1641763808287,6.95352563,142.9,142.86,3.96967759]
[1641763808488,1.35490551,142.9,142.86,7.96957759]
[1641763808689,1.35490551,142.89,142.88,27.66479]
[1641763808887,1.35490551,142.89,142.88,33.93679]
[1641763809288,1.35490551,142.92,142.88,37.90646759]
[1641763809488,1.35490551,142.92,142.88,10.24167759]
[1641763809689,6.95244492,142.92,142.89,3.96967759]
[1641763809890,8.70144492,142.92,142.89,3.96967759]
[1641763810092,1.35490551,142.91,142.89,3.96967759]
[1641763810588,1.35490551,142.91,142.86,3.96967759]
[1641763813392,4.0,142.9,142.86,3.96967759]
[1641763813592,18.04765997,142.9,142.86,3.96967759]
[1641763813795,4.0,142.87,142.85,27.66479]
[1641763813994,4.0,142.86,142.82,14.82661528]
[1641763814196,5.60092077,142.84,142.82,14.82661528]
[1641763814794,1.75,142.85,142.8,2.46348042]
[1641763814795,29.41479,142.85,142.8,2.46348042]
[1641763814998,27.66479,142.85,142.83,3.9730542]
[1641763815195,6.71973392,142.87,142.83,3.9730542]
[1641763815396,6.71973392,142.87,142.82,8.581]
[1641763815597,8.7508401,142.89,142.82,8.581]
[1641763815796,1.75491979,142.86,142.83,3.9730542]
[1641763816296,1.75491979,142.88,142.83,3.9730542]
[1641763816798,1.75491979,142.87,142.83,31.6378442]
[1641763817196,1.75491979,142.86,142.84,3.9730542]
[1641763817598,7.0008401,142.89,142.84,3.9730542]
[1641763817996,1.35779452,142.88,142.84,3.9730542]
[1641763818198,8.70593044,142.88,142.84,3.9730542]
[1641763818397,12.70593044,142.88,142.84,3.9730542]
[1641763818597,8.70593044,142.88,142.84,3.9730542]
[1641763818796,1.35779452,142.87,142.8,3.9730542]
[1641763819396,14.27879452,142.87,142.8,3.9730542]
[1641763819997,9.60065957,142.85,142.8,3.9730542]
[1641763820397,1.75,142.84,142.8,3.9730542]
[1641763820597,3.10779452,142.84,142.8,3.9730542]
[1641763821099,1.35779452,142.83,142.79,3.9730542]
[1641763821498,1.35779452,142.83,142.81,3.9730542]
[1641763821898,1.35779452,142.84,142.79,3.9730542]
[1641763822098,10.24579452,142.84,142.79,3.9730542]
[1641763822701,1.35779452,142.83,142.79,3.9730542]
[1641763823498,1.35779452,142.84,142.79,3.9730542]
[1641763823699,1.35779452,142.84,142.79,14.4089542]
[1641763823900,1.35779452,142.86,142.79,14.4089542]
[1641763824300,10.95742506,142.87,142.8,3.9730542]
[1641763824502,12.70742506,142.87,142.8,3.9730542]
[1641763824701,1.35779452,142.86,142.8,3.9730542]
[1641763828904,1.35779452,142.86,142.81,27.66479]
[1641763829405,1.35779452,142.86,142.82,3.9730542]
[1641763829604,1.35779452,142.86,142.82,10.4550542]
[1641763830206,1.35779452,142.86,142.83,3.9730542]
[1641763831208,1.35779452,142.87,142.82,3.9730542]
[1641763833810,1.35779452,142.87,142.8,3.9730542]
[1641763834511,1.35779452,142.87,142.81,2.46362127]
[1641763834712,5.60032598,142.85,142.81,2.46362127]
[1641763834912,5.60032598,142.85,142.82,3.9730542]
[1641763835312,1.35779452,142.84,142.82,3.9730542]
[1641763836112,1.35779452,142.87,142.82,3.9730542]
[1641763838816,5.60001762,142.86,142.82,3.9730542]
[1641763839017,7.35001762,142.86,142.82,3.9730542]
[1641763839217,7.00304633,142.85,142.82,3.9730542]
[1641763839617,8.36084085,142.85,142.8,3.9730542]
[1641763840018,1.35779452,142.84,142.78,27.66479]
[1641763840419,1.35779452,142.84,142.79,3.97427218]
[1641763841619,1.35779452,142.84,142.8,2.46815366]
[1641763841919,1.35779452,142.84,142.8,8.83715366]
[1641763842119,1.35779452,142.84,142.81,3.97427218]
[1641763842319,5.35779452,142.84,142.81,3.97427218]
[1641763842521,5.60106476,142.83,142.81,3.97427218]
[1641763842922,1.35779452,142.82,142.81,3.97427218]
[1641763843321,1.35779452,142.82,142.79,3.97427218]
[1641763846125,1.35779452,142.82,142.78,3.97427218]
[1641763846528,1.35779452,142.82,142.8,3.97427218]
[1641763846926,1.35779452,142.82,142.79,2.47153225]
[1641763847327,1.35779452,142.82,142.8,3.97427218]
[1641763848129,1.35779452,142.82,142.8,11.04327218]
[1641763848728,6.95871304,142.84,142.81,3.97427218]
[1641763848928,8.70871304,142.84,142.81,3.97427218]
[1641763849130,1.35779452,142.83,142.81,3.97427218]
[1641763849529,1.35779452,142.83,142.78,3.97427218]
[1641763850630,1.35779452,142.83,142.79,2.47159134]
[1641763850830,1.35779452,142.83,142.79,10.68559134]
[1641763851232,1.35779452,142.84,142.8,3.97427218]
[1641763851433,1.35779452,142.84,142.8,6.44586352]
[1641763852132,1.35779452,142.86,142.81,6.44586352]
[1641763852632,1.35779452,142.86,142.82,3.97427218]
[1641763853033,1.35779452,142.86,142.82,6.44586352]
[1641763853732,1.35779452,142.86,142.83,6.44586352]
[1641763854134,1.35779452,142.86,142.84,3.97427218]
[1641763855137,1.35779452,142.86,142.8,3.97427218]
[1641763855336,1.35779452,142.86,142.84,8.903]
[1641763856338,1.35779452,142.87,142.84,8.903]
[1641763860042,4.0,142.85,142.79,14.82661528]
[1641763860340,4.0,142.85,142.77,14.82661528]
[1641763860341,7.35102609,142.84,142.77,14.82661528]
[1641763860541,21.19982061,142.84,142.8,3.97397588]
[1641763860740,7.00378204,142.83,142.8,3.97397588]
[1641763860941,5.60153416,142.82,142.78,3.97397588]
[1641763861643,1.35779452,142.81,142.78,3.97397588]
[1641763861844,1.35779452,142.81,142.79,2.47139747]
[1641763862344,1.35779452,142.81,142.8,3.97397588]
[1641763863044,1.35779452,142.82,142.8,3.97397588]
[1641763863945,1.35779452,142.82,142.77,3.97397588]
[1641763864847,1.35779452,142.82,142.78,2.47109603]
[1641763865047,1.35779452,142.82,142.78,8.77809603]
[1641763865248,1.35779452,142.85,142.79,3.97397588]
[1641763866552,5.60093449,142.84,142.8,2.47109603]
[1641763866754,15.45493449,142.84,142.8,2.47109603]
[1641763866953,1.35779452,142.83,142.81,3.97397588]
[1641763868957,1.35779452,142.83,142.78,3.97397588]
[1641763869457,1.35779452,142.83,142.77,3.97397588]
[1641763869858,1.35779452,142.83,142.79,2.47157704]
[1641763870260,1.35779452,142.83,142.8,3.97397588]
[1641763871157,1.35779452,142.83,142.8,6.659]
[1641763871558,1.35779452,142.83,142.81,3.97397588]
[1641763871961,14.82661528,142.87,142.81,3.97397588]
[1641763872159,56.21104209,142.89,142.82,2.47098521]
[1641763873159,2.48327354,142.88,142.82,2.47098521]
[1641763873359,4.62492623,142.88,142.83,3.97326033]
[1641763873660,2.14165269,142.87,142.83,3.97326033]
[1641763874559,2.14165269,142.88,142.82,3.97326033]
[1641763875560,2.14165269,142.88,142.83,2.47001479]
[1641763875759,3.89165269,142.88,142.83,2.47001479]
[1641763876160,2.14165269,142.87,142.84,3.97326033]
[1641763877463,2.14165269,142.87,142.82,3.97326033]
[1641763877963,2.14165269,142.88,142.82,3.97326033]
[1641763878163,2.14165269,142.88,142.85,3.9999]
[1641763878362,2.14165269,142.88,142.85,8.401]
[1641763878763,2.14165269,142.89,142.86,3.97326033]
[1641763879763,2.14165269,142.9,142.86,3.97326033]
[1641763880165,2.14165269,142.9,142.83,3.97326033]
[1641763880764,2.48137592,142.89,142.84,2.46890938]
[1641763881169,2.14165269,142.88,142.85,3.97326033]
[1641763881366,2.14165269,142.88,142.85,10.40826033]
[1641763882068,2.14165269,142.91,142.86,3.97326033]
[1641763882266,8.059,142.9,142.86,3.97326033]
[1641763882467,8.059,142.9,142.83,27.66479]
[1641763882869,2.14165269,142.89,142.84,3.97318259]
[1641763883268,4.62287969,142.89,142.84,3.97318259]
[1641763883666,2.14165269,142.88,142.84,3.97318259]
[1641763884067,4.62287969,142.88,142.84,3.97318259]
[1641763884568,2.14165269,142.87,142.84,3.97318259]
[1641763885171,2.14165269,142.89,142.84,3.97318259]
[1641763885370,2.14165269,142.89,142.84,13.16718259]
[1641763885971,2.14165269,142.89,142.85,3.97318259]
[1641763886171,2.14165269,142.89,142.85,6.44150051]
[1641763886572,3.89065269,142.89,142.85,6.44150051]
[1641763886771,3.89065269,142.89,142.83,27.66479]
[1641763886772,3.89065269,142.89,142.81,69.2648]
[1641763886971,5.59911432,142.88,142.81,34.5118]
[1641763887171,1.75,142.87,142.81,34.5118]
[1641763887373,5.75,142.87,142.82,3.97334691]
[1641763887574,1.75,142.87,142.82,6.44234535]
[1641763887774,2.14165269,142.86,142.82,6.44234535]
[1641763887973,9.27965269,142.86,142.82,6.44234535]
[1641763888174,13.27965269,142.86,142.83,3.97334691]
[1641763888374,1.75,142.85,142.83,3.97334691]
[1641763888574,3.89165269,142.85,142.78,51.86371528]
[1641763888773,3.89165269,142.85,142.78,47.86381528]
[1641763888974,2.14165269,142.84,142.79,3.97404253]
[1641763889177,2.14165269,142.84,142.79,6.44316439]
[1641763889674,2.14165269,142.84,142.8,3.97404253]
[1641763889675,6.14165269,142.84,142.8,3.97404253]
[1641763889875,2.14165269,142.84,142.8,3.97404253]
[1641763890077,2.14165269,142.83,142.8,3.97404253]
[1641763890576,2.14165269,142.84,142.79,3.97404253]
[1641763891281,2.14165269,142.84,142.8,2.46892656]
[1641763891880,2.14165269,142.84,142.81,3.97404253]
[1641763893182,2.14165269,142.84,142.79,3.97404253]
[1641763893882,2.14165269,142.84,142.8,2.46924308]
[1641763894082,2.14165269,142.85,142.8,2.46924308]
[1641763894284,9.60075753,142.84,142.8,2.46924308]
[1641763894582,11.35075753,142.84,142.81,3.97404253]
[1641763894782,2.14165269,142.83,142.81,3.97404253]
[1641763896183,2.14165269,142.83,142.79,3.97404253]
[1641763899486,7.74286964,142.83,142.79,3.97404253]
[1641763899985,2.14165269,142.82,142.79,3.97404253]
[1641763901189,4.0,142.8,142.79,3.97404253]
[1641763901388,4.0,142.8,142.75,14.82661528]
[1641763901589,5.60291502,142.79,142.75,14.82661528]
[1641763902288,5.75,142.8,142.75,14.82661528]
[1641763902488,9.60271436,142.79,142.76,3.975443]
[1641763902688,2.93781648,142.78,142.76,3.975443]
[1641763903088,2.93781648,142.78,142.73,3.975443]
[1641763904790,2.93781648,142.81,142.73,3.975443]
[1641763904990,10.702,142.8,142.73,3.975443]
[1641763905189,13.63981648,142.8,142.73,3.975443]
[1641763905391,11.88981648,142.8,142.73,3.975443]
[1641763905590,2.93781648,142.79,142.73,3.975443]
[1641763905992,2.93781648,142.78,142.73,3.975443]
[1641763906290,2.93781648,142.77,142.73,3.975443]
[1641763906892,8.952,142.8,142.73,3.975443]
[1641763907293,2.54097605,142.79,142.73,3.975443]
[1641763908095,2.54097605,142.8,142.73,3.975443]
[1641763908794,2.54097605,142.8,142.75,27.66479]
[1641763908995,2.54097605,142.81,142.73,3.975443]
[1641763909195,2.54097605,142.81,142.73,28.67277482]
[1641763909795,2.54097605,142.81,142.74,3.975443]
[1641763910596,4.0,142.8,142.74,3.975443]
[1641763910797,29.41479,142.79,142.74,3.975443]
[1641763911199,2.54097605,142.78,142.74,3.975443]
[1641763911997,8.14415636,142.78,142.74,3.975443]
[1641763912198,4.0,142.75,142.73,3.975443]
[1641763912399,7.354,142.75,142.73,3.975443]
[1641763912598,2.54097605,142.74,142.73,3.975443]
[1641763912798,30.20576605,142.74,142.73,3.975443]
[1641763912996,30.20576605,142.74,142.65,72.5431]
[1641763912997,34.20576605,142.74,142.68,14.82661528]
[1641763913198,11.35523417,142.73,142.68,14.82661528]
[1641763913398,5.60596543,142.71,142.68,14.82661528]
[1641763913597,14.07496543,142.71,142.68,14.82661528]
[1641763913998,14.07496543,142.71,142.64,48.55161528]
[1641763914400,3.97713983,142.7,142.65,7.42418168]
[1641763914600,3.97713983,142.7,142.65,3.42428168]
[1641763914801,3.97713983,142.7,142.66,3.42428168]
[1641763915200,3.97713983,142.7,142.65,3.42428168]
[1641763917104,3.97713983,142.72,142.65,3.42428168]
[1641763917715,3.97713983,142.72,142.66,2.46173827]
[1641763918208,3.97713983,142.72,142.66,13.35263827]
[1641763918506,3.97713983,142.72,142.67,3.42428168]
[1641763919208,4.0,142.72,142.67,3.42428168]
[1641763919411,5.75,142.72,142.67,3.42428168]
[1641763919607,1.75,142.72,142.67,3.42428168]
[1641763919811,3.97713983,142.71,142.65,3.42428168]
[1641763920613,7.97713983,142.71,142.65,3.42428168]
[1641763920811,5.60616737,142.7,142.65,3.42428168]
[1641763921212,3.97713983,142.69,142.65,3.42428168]
[1641763926924,3.97713983,142.72,142.65,3.42428168]
[1641763928931,9.60607036,142.71,142.65,3.42428168]
[1641763929132,1.752,142.7,142.65,3.42428168]
[1641763929533,3.97713983,142.69,142.65,3.42428168]
[1641763929730,7.35925946,142.68,142.65,3.42428168]
[1641763929931,5.60801338,142.66,142.65,3.42428168]
[1641763930332,9.58515321,142.66,142.64,3.42428168]
[1641763930533,5.60824675,142.65,142.64,3.42428168]
[1641763930732,9.58538658,142.65,142.64,3.42428168]
[1641763931332,13.58538658,142.65,142.62,3.42428168]
[1641763931531,2.18511289,142.62,142.58,14.82661528]
[1641763931732,5.72913983,142.64,142.58,14.82661528]